fUSD/lending_fUSD_20241221
["ID","MTS","AMOUNT","RATE_DAILY","PERIOD"]
[346224901,1734780639033,-500.0,0.00019451,2]
[346224902,1734780639043,-500.0,0.00019451,2]
[346224903,1734780639053,-500.0,0.00019451,2]
[346224904,1734780639064,-500.0,0.00019451,2]
[346224905,1734780639074,-500.0,0.00019451,2]
[346224906,1734780639085,-500.0,0.00019451,2]
[346224907,1734780639095,-500.0,0.00019451,2]
[346224908,1734780639107,-500.0,0.00019451,2]
[346224909,1734780639117,-500.0,0.00019451,2]
[346224910,1734780639129,-500.0,0.00019451,2]
[346224911,1734780639141,-555.03758038,0.00019451,2]
[346224912,1734780639153,-500.0,0.00019451,2]
[346224913,1734780639163,-500.0,0.00019451,2]
[346224914,1734780639172,-500.0,0.00019451,2]
[346224915,1734780639182,-500.0,0.00019451,2]
[346224916,1734780639191,-500.0,0.00019451,2]
[346224917,1734780639201,-501.34349624,0.00019451,2]
[346224918,1734780639211,-500.0,0.00019451,2]
[346224919,1734780639220,-500.0,0.00019451,2]
[346224920,1734780639230,-500.0,0.00019451,2]
[346224921,1734780639239,-505.31517297,0.00019451,2]
[346224922,1734780639248,-500.0,0.00019451,2]
[346224923,1734780639257,-500.0,0.00019451,2]
[346224924,1734780639267,-500.0,0.00019451,2]
[346224925,1734780639276,-500.0,0.00019451,2]
[346224926,1734780639285,-500.0,0.00019451,2]
[346224927,1734780639295,-500.0,0.00019451,2]
[346224928,1734780639304,-500.0,0.00019451,2]
[346224929,1734780639314,-500.0,0.00019451,2]
[346224930,1734780639323,-500.0,0.00019451,2]
[346224931,1734780639333,-500.0,0.00019451,2]
[346224932,1734780639342,-279.99118009,0.00019451,2]
[346224933,1734780639351,-553.58728036,0.00019451,2]
[346224934,1734780639361,-500.0,0.00019451,2]
[346224935,1734780639370,-500.0,0.00019451,2]
[346224936,1734780639380,-500.0,0.00019451,2]
[346224937,1734780639392,-500.0,0.00019451,2]
[346224938,1734780639402,-500.0,0.00019451,2]
[346224939,1734780639412,-500.0,0.00019451,2]
[346224940,1734780639422,-500.0,0.00019451,2]
[346224941,1734780639431,-500.0,0.00019451,2]
[346224942,1734780639441,-500.0,0.00019451,2]
[346224943,1734780639451,-500.0,0.00019451,2]
[346224944,1734780639461,-500.0,0.00019451,2]
[346224945,1734780639470,-500.0,0.00019451,2]
[346224946,1734780639480,-500.0,0.00019451,2]
[346224947,1734780639490,-200.12970712,0.00019451,2]
[346224948,1734780639500,-500.0,0.00019451,2]
[346224949,1734780639511,-500.0,0.00019451,2]
[346224950,1734780639523,-500.0,0.00019451,2]
[346224951,1734780639533,-907.46,0.00019451,2]
[346224952,1734780639543,-500.0,0.00019451,2]
[346224953,1734780639552,-500.0,0.00019451,2]
[346224954,1734780639563,-500.0,0.00019451,2]
[346224955,1734780639572,-500.0,0.00019451,2]
[346224956,1734780639582,-587.14,0.00019451,2]
[346224957,1734780639593,-500.0,0.00019451,2]
[346224958,1734780639603,-500.0,0.00019451,2]
[346224959,1734780639614,-500.0,0.00019451,2]
[346224960,1734780639623,-500.0,0.00019451,2]
[346224961,1734780639633,-500.0,0.00019451,2]
[346224962,1734780639644,-1033.67,0.00019451,2]
[346224963,1734780639654,-450.29372627,0.00019451,2]
[346224964,1734780639664,-500.0,0.00019451,2]
[346224965,1734780639673,-469.18405619,0.00019451,2]
[346224966,1734780639683,-500.0,0.00019451,2]
[346224967,1734780639692,-500.0,0.00019451,2]
[346224968,1734780639702,-500.0,0.00019451,2]
[346224969,1734780639712,-516.79,0.00019451,2]
[346224970,1734780639722,-500.0,0.00019451,2]
[346224971,1734780639731,-500.0,0.00019451,2]
[346224972,1734780639740,-500.0,0.00019451,2]
[346224973,1734780639750,-500.0,0.00019451,2]
[346224974,1734780639760,-1040.98,0.00019451,2]
[346224975,1734780639769,-500.0,0.00019451,2]
[346224976,1734780639779,-500.0,0.00019451,2]
[346224977,1734780639790,-500.0,0.00019451,2]
[346224978,1734780639800,-444.41088163,0.00019451,2]
[346224979,1734780639811,-500.0,0.00019451,2]
[346224980,1734780639821,-500.0,0.00019451,2]
[346224981,1734780639831,-859.84,0.00019451,2]
[346224983,1734780639841,-500.0,0.00019451,2]
[346224984,1734780639851,-906.79,0.00019451,2]
[346224985,1734780639862,-1182.57,0.00019451,2]
[346224986,1734780639872,-500.0,0.00019451,2]
[346224987,1734780639882,-500.0,0.00019451,2]
[346224988,1734780639895,-500.0,0.00019451,2]
[346224989,1734780639905,-500.0,0.00019451,2]
[346224990,1734780639915,-529.81,0.00019451,2]
[346224991,1734780639925,-500.0,0.00019451,2]
[346224992,1734780639935,-500.0,0.00019451,2]
[346224993,1734780639945,-500.0,0.00019451,2]
[346224994,1734780639955,-500.0,0.00019451,2]
[346224995,1734780639966,-500.0,0.00019451,2]
[346224996,1734780639976,-500.0,0.00019451,2]
[346224997,1734780639986,-500.0,0.00019451,2]
[346224998,1734780639996,-554.24,0.00019451,2]
[346224999,1734780640006,-500.0,0.00019451,2]
[346225000,1734780640016,-500.0,0.00019451,2]
[346225001,1734780640026,-500.0,0.00019451,2]
[346225002,1734780640036,-612.32342743,0.00019451,2]
[346225004,1734780640045,-500.0,0.00019451,2]
[346225006,1734780640055,-500.0,0.00019451,2]
[346225007,1734780640065,-634.91,0.00019451,2]
[346225008,1734780640074,-500.0,0.00019451,2]
[346225009,1734780640084,-500.0,0.00019451,2]
[346225010,1734780640093,-500.0,0.00019451,2]
[346225011,1734780640104,-1180.01,0.00019451,2]
[346225012,1734780640114,-832.81,0.00019451,2]
[346225013,1734780640124,-249.68990331,0.00019451,2]
[346225014,1734780640362,-250.31009669,0.00019451,2]
[346225015,1734780640372,-510.33,0.00019451,2]
[346225016,1734780640382,-324.08221907,0.00019451,2]
[346225017,1734780640407,-175.91778093,0.00019451,2]
[346225018,1734780640417,-500.0,0.00019451,2]
[346225019,1734780640427,-500.0,0.00019451,2]
[346225020,1734780640437,-550.34,0.00019451,2]
[346225021,1734780640447,-500.0,0.00019451,2]
[346225022,1734780640457,-500.0,0.00019451,2]
[346225023,1734780640467,-500.0,0.00019451,2]
[346225024,1734780640717,-1468.64,0.00019451,2]
[346225025,1734780640737,-500.0,0.00019451,2]
[346225026,1734780640747,-500.0,0.00019451,2]
[346225027,1734780640756,-500.0,0.00019451,2]
[346225028,1734780640765,-330.25038404,0.00019451,2]
[346225029,1734780640776,-169.74961596,0.00019451,2]
[346225030,1734780640785,-500.0,0.00019451,2]
[346225031,1734780640795,-639.69,0.00019451,2]
[346225032,1734780640805,-500.0,0.00019451,2]
[346225033,1734780640814,-500.0,0.00019451,2]
[346225034,1734780640825,-500.0,0.00019451,2]
[346225035,1734780640834,-500.0,0.00019451,2]
[346225036,1734780640843,-500.0,0.00019451,2]
[346225037,1734780640852,-927.64,0.00019451,2]
[346225038,1734780640861,-556.18,0.00019451,2]
[346225039,1734780640871,-500.0,0.00019451,2]
[346225040,1734780640880,-1000.0,0.00019451,2]
[346225041,1734780640890,-500.0,0.00019451,2]
[346225042,1734780640899,-500.0,0.00019451,2]
[346225043,1734780640909,-755.78,0.00019451,2]
[346225044,1734780640918,-500.0,0.00019451,2]
[346225045,1734780640927,-500.0,0.00019451,2]
[346225046,1734780640936,-410.81926677,0.00019451,2]
[346225047,1734780640945,-500.0,0.00019451,2]
[346225048,1734780640955,-525.70088984,0.00019451,2]
[346225049,1734780640964,-500.0,0.00019451,2]
[346225050,1734780640975,-443.13009904,0.00019451,2]
[346225051,1734780640985,-440.58797463,0.00019451,2]
[346225052,1734780640994,-500.0,0.00019451,2]
[346225053,1734780641003,-1477.15,0.00019451,2]
[346225054,1734780641012,-169.09501367,0.00019451,2]
[346225055,1734780641021,-500.0,0.00019451,2]
[346225056,1734780641030,-500.0,0.00019451,2]
[346225057,1734780641039,-500.0,0.00019451,2]
[346225058,1734780641048,-500.0,0.00019452,2]
[346225059,1734780641058,-716.89,0.00019452,2]
[346225060,1734780641068,-465.25318462,0.00019452,2]
[346225061,1734780641077,-500.0,0.00019452,2]
[346225062,1734780641086,-388.33665604,0.00019452,2]
[346225063,1734780641095,-500.0,0.00019452,2]
[346225064,1734780641104,-497.77636498,0.00019452,2]
[346225065,1734780641113,-500.0,0.00019452,2]
[346225066,1734780641123,-299.64852947,0.00019452,2]
[346225067,1734780641132,-559.68989271,0.00019452,2]
[346225068,1734780641141,-500.0,0.00019452,2]
[346225069,1734780641150,-545.24,0.00019452,2]
[346225070,1734780641159,-500.0,0.00019452,2]
[346225071,1734780641168,-500.0,0.00019452,2]
[346225072,1734780641177,-638.49,0.00019452,2]
[346225073,1734780641186,-500.0,0.00019452,2]
[346225074,1734780641196,-500.0,0.00019452,2]
[346225075,1734780641205,-500.0,0.00019452,2]
[346225076,1734780641214,-500.0,0.00019452,2]
[346225077,1734780641223,-500.0,0.00019452,2]
[346225078,1734780641232,-500.0,0.00019452,2]
[346225079,1734780641242,-500.0,0.00019452,2]
[346225080,1734780641251,-500.0,0.00019452,2]
[346225081,1734780641260,-500.0,0.00019452,2]
[346225082,1734780641269,-518.01,0.00019452,2]
[346225083,1734780641279,-500.0,0.00019452,2]
[346225084,1734780641289,-500.0,0.00019452,2]
[346225085,1734780641298,-339.48820812,0.00019452,2]
[346225086,1734780641308,-267.7387822,0.00019452,2]
[346225087,1734780641317,-639.7,0.00019452,2]
[346225088,1734780641327,-500.0,0.00019452,2]
[346225089,1734780641336,-500.0,0.00019452,2]
[346225090,1734780641345,-542.32763215,0.00019452,2]
[346225091,1734780641356,-500.0,0.00019452,2]
[346225092,1734780641365,-500.0,0.00019452,2]
[346225093,1734780641374,-500.0,0.00019452,2]
[346225094,1734780641384,-500.0,0.00019452,2]
[346225095,1734780641395,-500.0,0.00019452,2]
[346225096,1734780641404,-500.0,0.00019452,2]
[346225097,1734780641414,-500.0,0.00019452,2]
[346225098,1734780641423,-500.0,0.00019452,2]
[346225099,1734780641433,-500.0,0.00019452,2]
[346225100,1734780641444,-500.0,0.00019452,2]
[346225101,1734780641453,-500.0,0.00019452,2]
[346225102,1734780641464,-500.0,0.00019452,2]
[346225103,1734780641474,-500.0,0.00019452,2]
[346225104,1734780641484,-500.0,0.00019452,2]
[346225105,1734780641493,-500.0,0.00019452,2]
[346225106,1734780641503,-500.0,0.00019452,2]
[346225107,1734780641513,-500.0,0.00019452,2]
[346225108,1734780641524,-500.0,0.00019452,2]
[346225109,1734780641534,-1968.79,0.00019452,2]
[346225110,1734780641543,-500.0,0.00019452,2]
[346225111,1734780641553,-500.0,0.00019452,2]
[346225112,1734780641563,-500.0,0.00019452,2]
[346225113,1734780641572,-500.0,0.00019452,2]
[346225114,1734780641581,-500.0,0.00019452,2]
[346225115,1734780641593,-500.0,0.00019452,2]
[346225116,1734780641604,-500.0,0.00019452,2]
[346225117,1734780641613,-500.0,0.00019452,2]
[346225118,1734780641623,-223.01,0.00019452,2]
[346225119,1734780641633,-1344.7,0.00019452,2]
[346225120,1734780641644,-500.0,0.00019518,2]
[346225121,1734780641653,-600.0,0.00019518,2]
[346225122,1734780641662,-893.6329858,0.00019563,4]
[346225123,1734780641675,-3222.63404312,0.00019563,4]
[346225124,1734780641687,-6196.73297108,0.00019563,4]
[346225125,1734780641696,-425.01395619,0.00019723,2]
[346225126,1734780641706,-500.0,0.00019724,2]
[346225127,1734780641715,-233.50185315,0.00019724,2]
[346225128,1734780641726,-266.49814685,0.00019724,2]
[346225129,1734780641736,-500.0,0.00019724,2]
[346225130,1734780641747,-500.0,0.00019724,2]
[346225131,1734780641756,-500.0,0.00019724,2]
[346225132,1734780641767,-624.33851794,0.00019724,2]
[346225133,1734780641777,-500.0,0.00019724,2]
[346225134,1734780641787,-500.0,0.00019724,2]
[346225135,1734780641798,-500.0,0.00019724,2]
[346225136,1734780641808,-500.0,0.00019724,2]
[346225137,1734780641819,-500.0,0.00019724,2]
[346225138,1734780641831,-500.0,0.00019724,2]
[346225139,1734780641840,-500.0,0.00019724,2]
[346225140,1734780641850,-500.0,0.00019724,2]
[346225141,1734780641860,-500.0,0.00019724,2]
[346225142,1734780641870,-500.0,0.00019724,2]
[346225143,1734780641879,-523.46651644,0.00019724,2]
[346225144,1734780641892,-500.0,0.00019724,2]
[346225145,1734780641901,-193.46809263,0.00019724,2]
[346225146,1734780641911,-500.0,0.00019724,2]
[346225147,1734780641921,-500.0,0.00019724,2]
[346225148,1734780641930,-500.0,0.00019724,2]
[346225149,1734780641939,-500.0,0.00019724,2]
[346225150,1734780641949,-500.0,0.00019724,2]
[346225151,1734780641959,-500.0,0.00019724,2]
[346225152,1734780641968,-500.0,0.00019724,2]
[346225153,1734780641978,-423.35,0.00019724,2]
[346225154,1734780641989,-500.0,0.00019724,2]
[346225155,1734780642000,-543.51,0.00019724,2]
[346225156,1734780642011,-220.506156,0.00019724,2]
[346225157,1734780642022,-1016.67,0.00019724,2]
[346225158,1734780642035,-500.0,0.00019724,2]
[346225159,1734780642049,-152.83822579,0.00019724,2]
[346225160,1734780642058,-966.89,0.00019724,2]
[346225161,1734780642067,-622.62,0.00019724,2]
[346225162,1734780642078,-500.0,0.00019724,2]
[346225163,1734780642087,-176.765388,0.00019724,2]
[346225164,1734780642098,-500.0,0.00019724,2]
[346225165,1734780642108,-500.0,0.00019724,2]
[346225166,1734780642117,-500.0,0.00019724,2]
[346225167,1734780642127,-291.24525198,0.00019724,2]
[346225168,1734780642139,-428.36474802,0.00019724,2]
[346225169,1734780642149,-500.0,0.00019724,2]
[346225170,1734780642158,-500.0,0.00019724,2]
[346225171,1734780642167,-530.74,0.00019724,2]
[346225172,1734780642177,-500.0,0.00019724,2]
[346225173,1734780642187,-500.0,0.00019724,2]
[346225174,1734780642197,-839.94,0.00019724,2]
[346225175,1734780642207,-500.0,0.00019724,2]
[346225176,1734780642216,-586.52,0.00019724,2]
[346225177,1734780642227,-500.0,0.00019724,2]
[346225178,1734780642237,-500.0,0.00019724,2]
[346225179,1734780642246,-723.38,0.00019724,2]
[346225180,1734780642255,-259.48252898,0.00019724,2]
[346225181,1734780642438,-526.99763423,0.00019468,2]
[346225182,1734780642448,-268.73362553,0.00019724,2]
[346225183,1734780642528,-594.93384549,0.00019724,2]
[346225184,1734780642538,-635.54,0.00019724,2]
[346225185,1734780642547,-500.0,0.00019724,2]
[346225186,1734780642558,-624.37,0.00019724,2]
[346225187,1734780642569,-2056.35711694,0.00019724,2]
[346225188,1734780642596,-862.15288306,0.00019724,2]
[346225189,1734780642612,-500.0,0.00019724,2]
[346225190,1734780642622,-500.0,0.00019724,2]
[346225191,1734780642632,-466.82422713,0.00019724,2]
[346225192,1734780642645,-795.2,0.00019724,2]
[346225193,1734780642654,-594.94628971,0.00019724,2]
[346225194,1734780642665,-1.17371029,0.00019724,2]
[346225195,1734780642675,-1595.92,0.00019724,2]
[346225196,1734780642685,-738.38,0.00019724,2]
[346225197,1734780642694,-103.61001207,0.00019724,2]
[346225198,1734780642705,-496.96016262,0.00019724,2]
[346225199,1734780642720,-5888.41982531,0.00019724,2]
[346225200,1734780642729,-288.60064438,0.00019724,2]
[346225201,1734780642739,-500.0,0.00019724,2]
[346225202,1734780642748,-912.76,0.00019724,2]
[346225203,1734780642757,-726.69,0.00019724,2]
[346225204,1734780642767,-500.0,0.00019724,2]
[346225205,1734780642776,-885.19,0.00019724,2]
[346225206,1734780642786,-1916.93,0.00019724,2]
[346225207,1734780642795,-497.59041073,0.00019724,2]
[346225223,1734780644551,-311.11,0.0001904,2]
[346225225,1734780644562,-500.0,0.0001945,2]
[346225227,1734780644571,-526.99763423,0.00019527,2]
[346225229,1734780644583,-50.84958927,0.00019724,2]
[346225231,1734780644594,-649.84,0.00019724,2]
[346225233,1734780644604,-1953.04,0.00019724,2]
[346225235,1734780644613,-430.4201686,0.00019724,2]
[346225237,1734780644624,-662.1098314,0.00019724,2]
[346225239,1734780644633,-559.34,0.00019724,2]
[346225240,1734780644644,-1202.05,0.00019724,2]
[346225241,1734780644653,-500.0,0.00019724,2]
[346225242,1734780644663,-1609.32,0.00019724,2]
[346225243,1734780644672,-500.0,0.00019724,2]
[346225244,1734780644681,-645.19,0.00019724,2]
[346225245,1734780644691,-500.0,0.00019724,2]
[346225246,1734780644700,-3607.97,0.00019724,2]
[346225247,1734780644709,-690.81,0.00019724,2]
[346225248,1734780644718,-1156.32,0.00019724,2]
[346225249,1734780644727,-847.75,0.00019724,2]
[346225250,1734780644736,-6213.6,0.00019724,2]
[346225251,1734780644746,-848.85,0.00019724,2]
[346225252,1734780644755,-500.0,0.00019724,2]
[346225253,1734780644764,-4017.17,0.00019724,2]
[346225254,1734780644774,-1356.75,0.00019724,2]
[346225255,1734780644783,-500.0,0.00019724,2]
[346225256,1734780644793,-500.0,0.00019724,2]
[346225257,1734780644804,-500.0,0.00019724,2]
[346225258,1734780644813,-500.0,0.00019724,2]
[346225259,1734780644824,-500.0,0.00019724,2]
[346225260,1734780644833,-601.75,0.00019724,2]
[346225261,1734780644843,-500.0,0.00019724,2]
[346225262,1734780644853,-695.17,0.00019725,2]
[346225263,1734780644862,-500.0,0.00019725,2]
[346225264,1734780644872,-500.0,0.00019725,2]
[346225265,1734780644881,-500.0,0.00019725,2]
[346225266,1734780644893,-500.0,0.00019725,2]
[346225267,1734780644903,-500.0,0.00019725,2]
[346225268,1734780644912,-500.0,0.00019725,2]
[346225269,1734780644922,-500.0,0.00019725,2]
[346225270,1734780644932,-500.0,0.00019725,2]
[346225271,1734780644941,-500.0,0.00019725,2]
[346225272,1734780644951,-500.0,0.00019725,2]
[346225273,1734780644960,-588.62933105,0.00019725,2]
[346225274,1734780644970,-648.78824553,0.00019725,2]
[346225275,1734780644979,-500.0,0.00019725,2]
[346225276,1734780644988,-509.19040084,0.00019725,2]
[346225277,1734780644997,-500.0,0.00019725,2]
[346225278,1734780645007,-500.0,0.00019725,2]
[346225279,1734780645016,-500.0,0.00019725,2]
[346225280,1734780645025,-500.0,0.00019725,2]
[346225281,1734780645035,-500.0,0.00019725,2]
[346225282,1734780645044,-500.0,0.00019725,2]
[346225283,1734780645053,-500.0,0.00019725,2]
[346225284,1734780645063,-500.0,0.00019725,2]
[346225285,1734780645072,-153.75,0.00019725,2]
[346225286,1734780645081,-500.0,0.00019725,2]
[346225287,1734780645090,-500.0,0.00019725,2]
[346225288,1734780645100,-500.0,0.00019725,2]
[346225289,1734780645109,-500.0,0.00019725,2]
[346225290,1734780645119,-500.0,0.00019725,2]
[346225291,1734780645128,-500.0,0.00019725,2]
[346225292,1734780645137,-500.0,0.00019725,2]
[346225293,1734780645153,-572.96645382,0.00019725,2]
[346225294,1734780645162,-500.0,0.00019725,2]
[346225295,1734780645172,-500.0,0.00019725,2]
[346225296,1734780645181,-500.0,0.00019725,2]
[346225297,1734780645190,-500.0,0.00019725,2]
[346225298,1734780645199,-500.0,0.00019725,2]
[346225299,1734780645208,-509.86953841,0.00019725,2]
[346225300,1734780645217,-500.0,0.00019725,2]
[346225301,1734780645226,-256.01059892,0.00019725,2]
[346225302,1734780645239,-243.98940108,0.00019725,2]
[346225303,1734780645248,-500.0,0.00019725,2]
[346225304,1734780645257,-89.89047603,0.00019725,2]
[346225305,1734780645280,-410.10952397,0.00019725,2]
[346225306,1734780645289,-269.41791145,0.00019725,2]
[346225307,1734780645300,-230.58208855,0.00019725,2]
[346225308,1734780645309,-96.1594565,0.00019725,2]
[346225309,1734780645320,-403.8405435,0.00019725,2]
[346225310,1734780645329,-700.0,0.00019725,2]
[346225311,1734780645339,-500.0,0.00019725,2]
[346225312,1734780645349,-500.0,0.00019725,2]
[346225313,1734780645358,-500.0,0.00019725,2]
[346225314,1734780645367,-500.0,0.00019725,2]
[346225315,1734780645377,-500.0,0.00019725,2]
[346225316,1734780645386,-500.0,0.00019725,2]
[346225317,1734780645397,-500.0,0.00019725,2]
[346225318,1734780645407,-460.23,0.00019725,2]
[346225319,1734780645417,-500.0,0.00019725,2]
[346225320,1734780645426,-500.0,0.00019725,2]
[346225321,1734780645436,-500.0,0.00019725,2]
[346225322,1734780645445,-500.0,0.00019725,2]
[346225323,1734780645455,-524.70053487,0.00019725,2]
[346225324,1734780645464,-500.0,0.00019725,2]
[346225325,1734780645473,-500.0,0.00019725,2]
[346225326,1734780645482,-500.0,0.00019725,2]
[346225327,1734780645492,-500.0,0.00019725,2]
[346225328,1734780645501,-204.42892163,0.00019725,2]
[346225329,1734780645514,-295.57107837,0.00019725,2]
[346225330,1734780645525,-500.0,0.00019725,2]
[346225331,1734780645534,-369.33574676,0.00019725,2]
[346225332,1734780645594,-500.0,0.0001945,2]
[346225333,1734780645604,-500.0,0.0001945,2]
[346225334,1734780645614,-130.66425324,0.00019725,2]
[346225335,1734780645623,-500.0,0.00019725,2]
[346225336,1734780645632,-500.0,0.00019725,2]
[346225337,1734780645644,-500.0,0.00019725,2]
[346225338,1734780645653,-500.0,0.00019725,2]
[346225339,1734780645663,-604.30485322,0.00019725,2]
[346225340,1734780645672,-213.39061507,0.00019725,2]
[346225341,1734780645684,-286.60938493,0.00019725,2]
[346225342,1734780645693,-500.0,0.00019725,2]
[346225343,1734780645703,-500.0,0.00019725,2]
[346225344,1734780645712,-500.0,0.00019725,2]
[346225345,1734780645721,-500.0,0.00019725,2]
[346225346,1734780645730,-500.0,0.00019725,2]
[346225347,1734780645740,-500.0,0.00019725,2]
[346225348,1734780645749,-500.0,0.00019725,2]
[346225350,1734780645759,-146.13783211,0.00019725,2]
[346225352,1734780645771,-353.86216789,0.00019725,2]
[346225354,1734780645780,-500.0,0.00019725,2]
[346225355,1734780645790,-500.0,0.00019725,2]
[346225356,1734780645799,-500.0,0.00019725,2]
[346225357,1734780645808,-500.0,0.00019725,2]
[346225359,1734780645818,-907.46,0.00019725,2]
[346225361,1734780645829,-587.14,0.00019725,2]
[346225362,1734780645839,-500.0,0.00019725,2]
[346225363,1734780645848,-1033.67,0.00019725,2]
[346225364,1734780645858,-500.0,0.00019725,2]
[346225365,1734780645867,-500.0,0.00019725,2]
[346225367,1734780645876,-500.0,0.00019725,2]
[346225368,1734780645886,-500.0,0.00019725,2]
[346225369,1734780645898,-516.79,0.00019725,2]
[346225370,1734780645907,-500.0,0.00019725,2]
[346225371,1734780645917,-500.0,0.00019725,2]
[346225372,1734780645926,-500.0,0.00019725,2]
[346225373,1734780645936,-661.57703027,0.00019725,2]
[346225374,1734780646050,-500.0,0.0001945,2]
[346225375,1734780646060,-500.0,0.00019451,2]
[346225376,1734780646070,-158.47665928,0.00019724,2]
[346225377,1734780646083,-341.52334072,0.00019724,2]
[346225378,1734780646092,-500.0,0.00019724,2]
[346225379,1734780646101,-500.0,0.00019724,2]
[346225380,1734780646111,-379.40296973,0.00019725,2]
[346225381,1734780646120,-500.0,0.00019725,2]
[346225382,1734780646130,-537.14459553,0.00019725,2]
[346225383,1734780646141,-500.0,0.00019725,2]
[346225384,1734780646150,-181.00373394,0.00019725,2]
[346225385,1734780646162,-318.99626606,0.00019725,2]
[346225386,1734780646171,-500.0,0.00019725,2]
[346225387,1734780646180,-859.84,0.00019725,2]
[346225388,1734780646190,-500.0,0.00019725,2]
[346225389,1734780646199,-906.79,0.00019725,2]
[346225390,1734780646208,-1182.57,0.00019725,2]
[346225391,1734780646218,-500.0,0.00019725,2]
[346225392,1734780646227,-500.0,0.00019725,2]
[346225393,1734780646237,-500.0,0.00019725,2]
[346225394,1734780646246,-529.81,0.00019725,2]
[346225395,1734780646256,-500.0,0.00019725,2]
[346225396,1734780646265,-500.0,0.00019725,2]
[346225397,1734780646274,-500.0,0.00019725,2]
[346225398,1734780646284,-500.0,0.00019725,2]
[346225399,1734780646293,-500.0,0.00019725,2]
[346225400,1734780646302,-500.0,0.00019725,2]
[346225401,1734780646311,-500.0,0.00019725,2]
[346225402,1734780646321,-500.0,0.00019725,2]
[346225403,1734780646330,-554.24,0.00019725,2]
[346225404,1734780646339,-500.0,0.00019725,2]
[346225405,1734780646349,-500.0,0.00019725,2]
[346225406,1734780646358,-500.0,0.00019725,2]
[346225407,1734780646367,-500.0,0.00019725,2]
[346225408,1734780646376,-634.91,0.00019725,2]
[346225409,1734780646386,-500.0,0.00019725,2]
[346225410,1734780646397,-500.0,0.00019725,2]
[346225411,1734780646406,-500.0,0.00019725,2]
[346225412,1734780646415,-1180.01,0.00019725,2]
[346225413,1734780646424,-832.81,0.00019725,2]
[346225414,1734780646434,-500.0,0.00019725,2]
[346225416,1734780646443,-510.33,0.00019725,2]
[346225417,1734780646452,-500.0,0.00019725,2]
[346225418,1734780646462,-500.0,0.00019725,2]
[346225419,1734780646471,-500.0,0.00019725,2]
[346225420,1734780646480,-550.34,0.00019725,2]
[346225421,1734780646490,-500.0,0.00019725,2]
[346225422,1734780646500,-500.0,0.00019725,2]
[346225423,1734780646509,-500.0,0.00019725,2]
[346225424,1734780646523,-1468.64,0.00019725,2]
[346225425,1734780646532,-571.27884336,0.00019725,2]
[346225426,1734780646541,-500.0,0.00019725,2]
[346225427,1734780646551,-500.0,0.00019725,2]
[346225428,1734780646561,-500.0,0.00019725,2]
[346225429,1734780646571,-500.0,0.00019725,2]
[346225430,1734780646580,-639.69,0.00019725,2]
[346225431,1734780646591,-500.0,0.00019725,2]
[346225432,1734780646600,-500.0,0.00019725,2]
[346225433,1734780646610,-500.0,0.00019725,2]